[Event "Live Chess"]
[Site "Chess.com"]
[Date "2024.06.02"]
[Round "-"]
[White "goldinspiredphoenix"]
[Black "Cruiseylee78"]
[Result "0-1"]
[WhiteElo "1489"]
[BlackElo "1698"]
[TimeControl "300"]
[EndTime "7:57:55 PDT"]
[Termination "Cruiseylee78 won by resignation"]

1. d4 {[%clk 0:04:56.3]} 1... d5 {[%clk 0:04:56.9]} 2. c4 {[%clk 0:04:53.6]}
2... Bf5 {[%clk 0:04:55.7]} 3. Nc3 {[%clk 0:04:50.8]} 3... e6 {[%clk 0:04:54.9]}
4. Bf4 {[%clk 0:04:50]} 4... c6 {[%clk 0:04:53.8]} 5. e3 {[%clk 0:04:49.4]} 5...
Nd7 {[%clk 0:04:52.9]} 6. Nf3 {[%clk 0:04:48.3]} 6... Ngf6 {[%clk 0:04:51.3]} 7.
cxd5 {[%clk 0:04:47]} 7... exd5 {[%clk 0:04:49.9]} 8. Ne5 {[%clk 0:04:44.2]}
8... Nxe5 {[%clk 0:04:45.6]} 9. Bxe5 {[%clk 0:04:42.3]} 9... Bd6 {[%clk
0:04:44.1]} 10. Bxd6 {[%clk 0:04:35.2]} 10... Qxd6 {[%clk 0:04:44]} 11. Be2
{[%clk 0:04:33.2]} 11... O-O-O {[%clk 0:04:43]} 12. Qb3 {[%clk 0:04:28.8]} 12...
Qc7 {[%clk 0:04:29.2]} 13. Rc1 {[%clk 0:04:25.3]} 13... a6 {[%clk 0:04:20]} 14.
h3 {[%clk 0:04:19.1]} 14... Ne4 {[%clk 0:04:17.6]} 15. Nxe4 {[%clk 0:04:16.7]}
15... Bxe4 {[%clk 0:04:16.8]} 16. Bg4+ {[%clk 0:04:15.3]} 16... f5 {[%clk
0:04:15.1]} 17. Bf3 {[%clk 0:04:14.5]} 17... Bxf3 {[%clk 0:04:09]} 18. gxf3
{[%clk 0:04:13.4]} 18... Rhe8 {[%clk 0:04:03.7]} 19. Rc3 {[%clk 0:03:57.6]}
19... Qa5 {[%clk 0:04:01.7]} 20. a3 {[%clk 0:03:52.6]} 20... Qb5 {[%clk
0:03:54.9]} 21. Qxb5 {[%clk 0:03:49.6]} 21... axb5 {[%clk 0:03:54.8]} 22. Kd2
{[%clk 0:03:48.4]} 22... f4 {[%clk 0:03:50.5]} 23. Rhc1 {[%clk 0:03:46.2]} 23...
fxe3+ {[%clk 0:03:48.9]} 24. fxe3 {[%clk 0:03:39.2]} 24... Rf8 {[%clk
0:03:47.1]} 25. f4 {[%clk 0:03:29.4]} 25... Rf5 {[%clk 0:03:45.1]} 26. Ke2
{[%clk 0:03:20.9]} 26... Rh5 {[%clk 0:03:43.4]} 27. Rh1 {[%clk 0:03:20.1]} 27...
Re8 {[%clk 0:03:40.9]} 28. Kf3 {[%clk 0:03:19.3]} 28... Re6 {[%clk 0:03:36]} 29.
b4 {[%clk 0:03:13.1]} 29... Kd7 {[%clk 0:03:34.3]} 30. Kg3 {[%clk 0:03:05.9]}
30... Rg6+ {[%clk 0:03:25.3]} 31. Kf3 {[%clk 0:03:02.8]} 31... Rgh6 {[%clk
0:03:20.2]} 32. Kg4 {[%clk 0:03:02]} 32... Rh4+ {[%clk 0:03:18.2]} 33. Kg3
{[%clk 0:03:00.1]} 33... R4h5 {[%clk 0:03:08.8]} 34. h4 {[%clk 0:02:57.6]} 34...
Rg6+ {[%clk 0:03:05.3]} 35. Kh3 {[%clk 0:02:56.3]} 35... Rgh6 {[%clk 0:03:01.2]}
36. Kg4 {[%clk 0:02:52.8]} 36... g6 {[%clk 0:02:57]} 37. a4 {[%clk 0:02:42.4]}
37... bxa4 {[%clk 0:02:54.7]} 38. Ra3 {[%clk 0:02:38.8]} 38... b5 {[%clk
0:02:53.8]} 39. Rc3 {[%clk 0:02:37.2]} 39... Kd6 {[%clk 0:02:45.2]} 40. Rhc1
{[%clk 0:02:35.6]} 40... Rxh4+ {[%clk 0:02:42.5]} 41. Kf3 {[%clk 0:02:30.8]}
41... Rh3+ {[%clk 0:02:40.9]} 42. Ke2 {[%clk 0:02:29.4]} 42... Rh2+ {[%clk
0:02:38.8]} 43. Kd3 {[%clk 0:02:28.5]} 43... Kd7 {[%clk 0:02:31.1]} 44. Rxc6
{[%clk 0:02:25.8]} 44... g5 {[%clk 0:02:26.8]} 45. Rxh6 {[%clk 0:02:21.6]} 45...
Rxh6 {[%clk 0:02:25.6]} 46. fxg5 {[%clk 0:02:20.6]} 46... Rg6 {[%clk 0:02:24.7]}
47. Rg1 {[%clk 0:02:03.8]} 47... h6 {[%clk 0:02:23.6]} 48. Rf1 {[%clk
0:01:57.7]} 48... Rxg5 {[%clk 0:02:20.7]} 49. Rf7+ {[%clk 0:01:56.3]} 49... Ke6
{[%clk 0:02:18.5]} 50. Ra7 {[%clk 0:01:54.8]} 50... h5 {[%clk 0:02:16]} 51. Ra6+
{[%clk 0:01:53.4]} 51... Kf5 {[%clk 0:02:10.9]} 52. Ra5 {[%clk 0:01:52.2]} 52...
h4 {[%clk 0:02:07.6]} 53. Rxb5 {[%clk 0:01:51.4]} 53... h3 {[%clk 0:02:05.9]}
54. Rxd5+ {[%clk 0:01:50.4]} 54... Kg4 {[%clk 0:02:04.9]} 55. Rxg5+ {[%clk
0:01:49.2]} 55... Kxg5 {[%clk 0:02:04]} 56. b5 {[%clk 0:01:48.7]} 56... h2
{[%clk 0:02:03.4]} 57. b6 {[%clk 0:01:47.6]} 57... h1=Q {[%clk 0:02:02]} 58. e4
{[%clk 0:01:46.3]} 58... Qb1+ {[%clk 0:01:58.9]} 59. Kc4 {[%clk 0:01:45.5]}
59... Qxb6 {[%clk 0:01:57.8]} 0-1

[Event "Live Chess"]
[Site "Chess.com"]
[Date "2024.06.02"]
[Round "-"]
[White "wadsy27"]
[Black "Hazban"]
[Result "1-0"]
[WhiteElo "2604"]
[BlackElo "2054"]
[TimeControl "300"]
[EndTime "7:58:09 PDT"]
[Termination "wadsy27 won by resignation"]

1. c4 {[%clk 0:04:58.5]} 1... Nf6 {[%clk 0:04:57.7]} 2. g3 {[%clk 0:04:51.2]}
2... c6 {[%clk 0:04:56.5]} 3. Nf3 {[%clk 0:04:49.3]} 3... d5 {[%clk 0:04:55.7]}
4. Bg2 {[%clk 0:04:48.6]} 4... dxc4 {[%clk 0:04:54.1]} 5. O-O {[%clk 0:04:47]}
5... b5 {[%clk 0:04:47.9]} 6. a4 {[%clk 0:04:45.2]} 6... Bb7 {[%clk 0:04:44.3]}
7. d3 {[%clk 0:04:44]} 7... cxd3 {[%clk 0:04:42.7]} 8. Ne5 {[%clk 0:04:43.6]}
8... a6 {[%clk 0:04:38.8]} 9. Qxd3 {[%clk 0:04:41.4]} 9... Qxd3 {[%clk
0:04:37.3]} 10. Nxd3 {[%clk 0:04:41.3]} 10... e6 {[%clk 0:04:35.1]} 11. Nd2
{[%clk 0:04:39.9]} 11... Nbd7 {[%clk 0:04:31.3]} 12. Nb3 {[%clk 0:04:38.7]}
12... c5 {[%clk 0:04:24.8]} 13. Bxb7 {[%clk 0:04:36.1]} 13... Ra7 {[%clk
0:04:23.2]} 14. Bc6 {[%clk 0:04:25.9]} 14... c4 {[%clk 0:04:21.3]} 15. axb5
{[%clk 0:04:24.5]} 15... Kd8 {[%clk 0:04:12]} 16. Be3 {[%clk 0:04:20]} 16... Rc7
{[%clk 0:03:59.9]} 17. bxa6 {[%clk 0:04:18.5]} 17... cxd3 {[%clk 0:03:53.8]} 18.
a7 {[%clk 0:04:15.8]} 18... Rxa7 {[%clk 0:03:49.3]} 19. Rxa7 {[%clk 0:04:14.1]}
19... dxe2 {[%clk 0:03:48.7]} 20. Re1 {[%clk 0:04:13.4]} 20... Bb4 {[%clk
0:03:40.1]} 21. Rxe2 {[%clk 0:04:12.5]} 21... Rf8 {[%clk 0:03:36.3]} 22. Bg5
{[%clk 0:04:11.4]} 1-0

[Event "Live Chess"]
[Site "Chess.com"]
[Date "2024.06.02"]
[Round "-"]
[White "Purple1szed"]
[Black "KyryloPoluliakh"]
[Result "1-0"]
[WhiteElo "2007"]
[BlackElo "1535"]
[TimeControl "300"]
[EndTime "7:58:14 PDT"]
[Termination "Purple1szed won on time"]

1. e4 {[%clk 0:04:58.5]} 1... c5 {[%clk 0:04:56.3]} 2. c3 {[%clk 0:04:57.7]}
2... Nf6 {[%clk 0:04:51.7]} 3. e5 {[%clk 0:04:56.2]} 3... Nd5 {[%clk 0:04:49.9]}
4. d4 {[%clk 0:04:56.1]} 4... cxd4 {[%clk 0:04:47.9]} 5. cxd4 {[%clk 0:04:56]}
5... Nc6 {[%clk 0:04:46]} 6. Bc4 {[%clk 0:04:54.9]} 6... Nb6 {[%clk 0:04:43.9]}
7. Bb3 {[%clk 0:04:54.6]} 7... d6 {[%clk 0:04:41.2]} 8. Nf3 {[%clk 0:04:54.2]}
8... dxe5 {[%clk 0:04:38.4]} 9. Nxe5 {[%clk 0:04:54.1]} 9... Nxe5 {[%clk
0:04:29.6]} 10. dxe5 {[%clk 0:04:54]} 10... Qxd1+ {[%clk 0:04:24.5]} 11. Bxd1
{[%clk 0:04:53.9]} 11... Bf5 {[%clk 0:04:21.5]} 12. Nc3 {[%clk 0:04:52.7]} 12...
e6 {[%clk 0:04:19]} 13. Bf3 {[%clk 0:04:51.2]} 13... Rb8 {[%clk 0:04:15]} 14.
Be3 {[%clk 0:04:49.8]} 14... Nc4 {[%clk 0:04:10.6]} 15. Bxa7 {[%clk 0:04:43.2]}
15... Ra8 {[%clk 0:04:07.7]} 16. Bd4 {[%clk 0:04:42.6]} 16... Nxb2 {[%clk
0:04:02.1]} 17. Nb5 {[%clk 0:04:41.7]} 17... Bb4+ {[%clk 0:03:52.9]} 18. Bc3
{[%clk 0:04:22.4]} 18... Nd3+ {[%clk 0:03:47.4]} 19. Ke2 {[%clk 0:04:17]} 19...
Bxc3 {[%clk 0:03:45.3]} 20. Nxc3 {[%clk 0:04:16]} 20... Rb8 {[%clk 0:03:40.6]}
21. g3 {[%clk 0:04:08.9]} 21... Nxe5 {[%clk 0:03:37.3]} 22. Bg2 {[%clk
0:04:06.2]} 22... Bd3+ {[%clk 0:03:33.3]} 23. Ke3 {[%clk 0:04:03]} 23... Bg6
{[%clk 0:03:28.1]} 24. Rhd1 {[%clk 0:04:01]} 24... O-O {[%clk 0:03:21.8]} 25. h3
{[%clk 0:03:59.1]} 25... b6 {[%clk 0:03:18.8]} 26. a4 {[%clk 0:03:53.5]} 26...
Rfd8 {[%clk 0:03:13.9]} 27. Nb5 {[%clk 0:03:52.4]} 27... Rxd1 {[%clk 0:03:10.8]}
28. Rxd1 {[%clk 0:03:52.3]} 28... h6 {[%clk 0:03:06.9]} 29. f4 {[%clk
0:03:43.3]} 29... Nc4+ {[%clk 0:03:03.5]} 30. Kf2 {[%clk 0:03:36.2]} 30... Nb2
{[%clk 0:02:55.2]} 31. Rd4 {[%clk 0:03:34.6]} 31... Ra8 {[%clk 0:02:47.8]} 32.
Bxa8 {[%clk 0:03:31.6]} 32... Nd3+ {[%clk 0:02:44.5]} 33. Ke3 {[%clk 0:03:29.7]}
33... Nc5 {[%clk 0:02:42.9]} 34. Nd6 {[%clk 0:03:23.4]} 34... Bc2 {[%clk
0:02:35.4]} 35. Bc6 {[%clk 0:03:17]} 35... Bb3 {[%clk 0:02:30.6]} 36. Ne4 {[%clk
0:03:15.2]} 36... Na6 {[%clk 0:02:20.2]} 37. Bb5 {[%clk 0:03:08.5]} 37... Nc7
{[%clk 0:02:16.7]} 38. Rd8+ {[%clk 0:03:07]} 38... Kh7 {[%clk 0:02:13.9]} 39.
Rd7 {[%clk 0:03:06.3]} 39... Nd5+ {[%clk 0:02:10.8]} 40. Kd4 {[%clk 0:02:59.6]}
40... Kg8 {[%clk 0:02:07.7]} 41. Nd2 {[%clk 0:02:54.7]} 41... Bc2 {[%clk
0:02:03.4]} 42. Nc4 {[%clk 0:02:53.4]} 42... f5 {[%clk 0:01:53.7]} 43. Rb7
{[%clk 0:02:50.2]} 43... Be4 {[%clk 0:01:34]} 44. Nxb6 {[%clk 0:02:48.6]} 44...
Nb4 {[%clk 0:01:26.4]} 45. Rb8+ {[%clk 0:02:47.9]} 45... Kh7 {[%clk 0:01:22.6]}
46. Nd7 {[%clk 0:02:46.9]} 46... Nc2+ {[%clk 0:01:17.8]} 47. Kc3 {[%clk
0:02:45.1]} 47... Kg6 {[%clk 0:01:14.7]} 48. Nf8+ {[%clk 0:02:40.3]} 48... Kf7
{[%clk 0:01:13.7]} 49. Nd7 {[%clk 0:02:32.7]} 49... Ne3 {[%clk 0:01:10.2]} 50.
Nc5 {[%clk 0:02:27.4]} 50... Nd5+ {[%clk 0:01:04.4]} 51. Kd4 {[%clk 0:02:26.1]}
51... Bg2 {[%clk 0:01:01.1]} 52. h4 {[%clk 0:02:24.7]} 52... Nc7 {[%clk
0:00:55.9]} 53. Rb6 {[%clk 0:02:22.1]} 53... Bd5 {[%clk 0:00:45.3]} 54. a5
{[%clk 0:02:17.8]} 54... Na8 {[%clk 0:00:42]} 55. Bc6 {[%clk 0:02:02.3]} 55...
Nxb6 {[%clk 0:00:34.1]} 56. axb6 {[%clk 0:02:02.2]} 56... Bxc6 {[%clk
0:00:32.2]} 57. b7 {[%clk 0:02:02.1]} 57... Bxb7 {[%clk 0:00:30.1]} 58. Nxb7
{[%clk 0:02:02]} 58... Kf6 {[%clk 0:00:28]} 59. Nc5 {[%clk 0:02:00.5]} 59... g5
{[%clk 0:00:21.6]} 60. Nd7+ {[%clk 0:01:54.3]} 60... Ke7 {[%clk 0:00:19.5]} 61.
Ne5 {[%clk 0:01:54.2]} 61... gxf4 {[%clk 0:00:18.2]} 62. gxf4 {[%clk 0:01:53.3]}
62... Kf6 {[%clk 0:00:17.2]} 63. h5 {[%clk 0:01:52]} 63... Ke7 {[%clk
0:00:15.6]} 64. Kc5 {[%clk 0:01:51.1]} 64... Kf6 {[%clk 0:00:14.8]} 65. Kc6
{[%clk 0:01:51]} 65... Ke7 {[%clk 0:00:13.6]} 66. Kc7 {[%clk 0:01:50.7]} 66...
Kf6 {[%clk 0:00:12.6]} 67. Kd6 {[%clk 0:01:50.6]} 67... Kg7 {[%clk 0:00:11.1]}
68. Kxe6 {[%clk 0:01:50.5]} 68... Kf8 {[%clk 0:00:09.8]} 69. Kxf5 {[%clk
0:01:50.4]} 69... Kg7 {[%clk 0:00:09]} 70. Ke6 {[%clk 0:01:49.8]} 70... Kh7
{[%clk 0:00:08.1]} 71. Kf6 {[%clk 0:01:49.7]} 71... Kg8 {[%clk 0:00:07.3]} 72.
Kg6 {[%clk 0:01:49.6]} 72... Kf8 {[%clk 0:00:06.5]} 73. Kxh6 {[%clk 0:01:49.5]}
73... Kg8 {[%clk 0:00:05.9]} 74. Kg6 {[%clk 0:01:49.4]} 74... Kf8 {[%clk
0:00:05.4]} 75. f5 {[%clk 0:01:49.3]} 75... Kg8 {[%clk 0:00:05]} 76. f6 {[%clk
0:01:49.2]} 76... Kf8 {[%clk 0:00:04.6]} 77. f7 {[%clk 0:01:46.9]} 77... Ke7
{[%clk 0:00:03.8]} 78. Nc6+ {[%clk 0:01:46.5]} 78... Ke6 {[%clk 0:00:03.3]} 79.
f8=Q {[%clk 0:01:44]} 79... Kd5 {[%clk 0:00:02]} 80. Qf5+ {[%clk 0:01:43.2]}
80... Kc4 {[%clk 0:00:01.4]} 81. h6 {[%clk 0:01:42.3]} 81... Kc3 {[%clk
0:00:00.6]} 82. h7 {[%clk 0:01:42.2]} 1-0

[Event "Live Chess"]
[Site "Chess.com"]
[Date "2024.06.02"]
[Round "-"]
[White "stevochess11"]
[Black "gmnorfolk"]
[Result "1-0"]
[WhiteElo "1708"]
[BlackElo "2118"]
[TimeControl "300"]
[EndTime "7:58:25 PDT"]
[Termination "stevochess11 won by resignation"]

1. d4 {[%clk 0:04:58.1]} 1... Nf6 {[%clk 0:04:58.6]} 2. Nf3 {[%clk 0:04:57]}
2... g6 {[%clk 0:04:56.9]} 3. Nc3 {[%clk 0:04:55.9]} 3... d5 {[%clk 0:04:55.5]}
4. Bf4 {[%clk 0:04:54.6]} 4... Bg7 {[%clk 0:04:53.9]} 5. e3 {[%clk 0:04:53.7]}
5... O-O {[%clk 0:04:53.2]} 6. Be2 {[%clk 0:04:52.8]} 6... c5 {[%clk 0:04:52.8]}
7. Ne5 {[%clk 0:04:51.8]} 7... cxd4 {[%clk 0:04:43.1]} 8. exd4 {[%clk
0:04:50.3]} 8... Nc6 {[%clk 0:04:42.8]} 9. O-O {[%clk 0:04:48.9]} 9... Bf5
{[%clk 0:04:40.9]} 10. g4 {[%clk 0:04:40.7]} 10... Be6 {[%clk 0:04:34.7]} 11.
Qd2 {[%clk 0:04:20.2]} 11... Ne4 {[%clk 0:04:30.3]} 12. Nxe4 {[%clk 0:04:16.8]}
12... dxe4 {[%clk 0:04:29.6]} 13. Nxc6 {[%clk 0:04:10.2]} 13... bxc6 {[%clk
0:04:27.7]} 14. c3 {[%clk 0:04:08.5]} 14... Qc8 {[%clk 0:04:09.9]} 15. h3 {[%clk
0:04:02.1]} 15... h5 {[%clk 0:04:05.2]} 16. gxh5 {[%clk 0:03:49.8]} 16... Bxh3
{[%clk 0:04:02]} 17. Rfe1 {[%clk 0:03:46.7]} 17... gxh5 {[%clk 0:03:38.4]} 18.
Bxh5 {[%clk 0:03:42.6]} 18... f5 {[%clk 0:03:37.7]} 19. Re3 {[%clk 0:03:36.9]}
19... Bg4 {[%clk 0:03:35]} 20. Bxg4 {[%clk 0:03:31.9]} 20... fxg4 {[%clk
0:03:34.2]} 21. Rg3 {[%clk 0:03:21.2]} 21... Qf5 {[%clk 0:03:32.6]} 22. Bh6
{[%clk 0:03:09.6]} 22... Rf6 {[%clk 0:03:28.4]} 23. Bxg7 {[%clk 0:03:06.2]}
23... Kxg7 {[%clk 0:03:27.7]} 24. Qe2 {[%clk 0:02:50.3]} 24... Rg6 {[%clk
0:03:20.2]} 25. Re1 {[%clk 0:02:48.6]} 25... Rf8 {[%clk 0:03:04.6]} 26. Re3
{[%clk 0:02:34.8]} 26... Rh8 {[%clk 0:02:56.6]} 27. Rxe4 {[%clk 0:02:30]} 27...
Kh6 {[%clk 0:01:43.6]} 28. Qe3+ {[%clk 0:02:22.8]} 28... Kh5 {[%clk 0:01:30.6]}
29. Re5 {[%clk 0:02:18.6]} 1-0

[Event "Live Chess"]
[Site "Chess.com"]
[Date "2024.06.02"]
[Round "-"]
[White "DylanMeyer1"]
[Black "Mangoalo"]
[Result "1-0"]
[WhiteElo "1716"]
[BlackElo "1080"]
[TimeControl "300"]
[EndTime "7:58:35 PDT"]
[Termination "DylanMeyer1 won by resignation"]

1. c4 {[%clk 0:04:50.3]} 1... e6 {[%clk 0:04:57.9]} 2. Nc3 {[%clk 0:04:49.3]}
2... Bb4 {[%clk 0:04:55.6]} 3. Qc2 {[%clk 0:04:46.1]} 3... Nf6 {[%clk
0:04:54.1]} 4. a3 {[%clk 0:04:44]} 4... Bxc3 {[%clk 0:04:51.7]} 5. Qxc3 {[%clk
0:04:40]} 5... O-O {[%clk 0:04:51.6]} 6. Nf3 {[%clk 0:04:37.1]} 6... Nc6 {[%clk
0:04:46.4]} 7. e3 {[%clk 0:04:35]} 7... Re8 {[%clk 0:04:44.8]} 8. Be2 {[%clk
0:04:33.4]} 8... d5 {[%clk 0:04:37.5]} 9. cxd5 {[%clk 0:04:30.1]} 9... exd5
{[%clk 0:04:37.4]} 10. d4 {[%clk 0:04:26.4]} 10... Bg4 {[%clk 0:04:34.9]} 11.
O-O {[%clk 0:04:16.7]} 11... Qe7 {[%clk 0:04:24.2]} 12. b4 {[%clk 0:04:12.4]}
12... Rad8 {[%clk 0:03:53.3]} 13. Bb2 {[%clk 0:03:54.2]} 13... h6 {[%clk
0:03:50.4]} 14. h3 {[%clk 0:03:28.4]} 14... Ne4 {[%clk 0:03:36.4]} 15. Qc2
{[%clk 0:03:01.7]} 15... Bf5 {[%clk 0:03:32.4]} 16. Qd1 {[%clk 0:02:59.3]} 16...
a6 {[%clk 0:03:19.3]} 17. Rc1 {[%clk 0:02:55.2]} 17... Ng5 {[%clk 0:02:51]} 18.
Ne5 {[%clk 0:02:47.2]} 18... Nxe5 {[%clk 0:02:45.5]} 19. dxe5 {[%clk 0:02:47.1]}
19... Qxe5 {[%clk 0:02:40.2]} 20. Bxe5 {[%clk 0:02:45.3]} 1-0

[Event "Live Chess"]
[Site "Chess.com"]
[Date "2024.06.02"]
[Round "-"]
[White "ameetghasi100"]
[Black "CheckThis4"]
[Result "1-0"]
[WhiteElo "2756"]
[BlackElo "2676"]
[TimeControl "300"]
[EndTime "7:58:42 PDT"]
[Termination "ameetghasi100 won on time"]

1. c4 {[%clk 0:04:59.3]} 1... e6 {[%clk 0:04:55.7]} 2. e3 {[%clk 0:04:59]} 2...
d5 {[%clk 0:04:52.3]} 3. Nf3 {[%clk 0:04:58.7]} 3... Nf6 {[%clk 0:04:51.7]} 4.
b3 {[%clk 0:04:58.2]} 4... c5 {[%clk 0:04:49.7]} 5. Bb2 {[%clk 0:04:57.7]} 5...
Nc6 {[%clk 0:04:49.4]} 6. cxd5 {[%clk 0:04:57.2]} 6... exd5 {[%clk 0:04:48.5]}
7. Bb5 {[%clk 0:04:56.7]} 7... Bd6 {[%clk 0:04:46.6]} 8. d4 {[%clk 0:04:55.6]}
8... cxd4 {[%clk 0:04:43.9]} 9. Nxd4 {[%clk 0:04:48.2]} 9... Bd7 {[%clk
0:04:42.9]} 10. Nc3 {[%clk 0:04:45.4]} 10... O-O {[%clk 0:04:40.2]} 11. h3
{[%clk 0:04:39.3]} 11... Re8 {[%clk 0:04:31.6]} 12. O-O {[%clk 0:04:27.3]} 12...
Nxd4 {[%clk 0:04:20.3]} 13. Qxd4 {[%clk 0:04:24]} 13... Be5 {[%clk 0:04:18.6]}
14. Qa4 {[%clk 0:04:13.5]} 14... Bxb5 {[%clk 0:03:51.8]} 15. Qxb5 {[%clk
0:04:12.2]} 15... a6 {[%clk 0:03:47.5]} 16. Qd3 {[%clk 0:03:39.8]} 16... d4
{[%clk 0:03:43.2]} 17. exd4 {[%clk 0:03:28.1]} 17... Qxd4 {[%clk 0:03:41.9]} 18.
Qxd4 {[%clk 0:03:23.3]} 18... Bxd4 {[%clk 0:03:41.8]} 19. Rad1 {[%clk
0:03:22.7]} 19... Rad8 {[%clk 0:03:39.7]} 20. Rd2 {[%clk 0:03:06.2]} 20... Bxc3
{[%clk 0:03:20.1]} 21. Bxc3 {[%clk 0:03:01.8]} 21... Rxd2 {[%clk 0:02:40.9]} 22.
Bxd2 {[%clk 0:02:59.3]} 22... Re2 {[%clk 0:02:39.8]} 23. Rd1 {[%clk 0:02:03.8]}
23... Ne4 {[%clk 0:02:28.6]} 24. Be3 {[%clk 0:02:01.4]} 24... h6 {[%clk
0:02:13.4]} 25. a4 {[%clk 0:01:59.5]} 25... Rb2 {[%clk 0:02:06.8]} 26. Rd8+
{[%clk 0:01:36]} 26... Kh7 {[%clk 0:02:05]} 27. Rd7 {[%clk 0:01:35.2]} 27...
Rxb3 {[%clk 0:01:28.5]} 28. Rxf7 {[%clk 0:01:33.6]} 28... Kg6 {[%clk 0:01:23.3]}
29. Rd7 {[%clk 0:01:25.7]} 29... Nf6 {[%clk 0:01:19.4]} 30. Rd6 {[%clk
0:01:24.5]} 30... Rb4 {[%clk 0:01:11.5]} 31. a5 {[%clk 0:01:22.7]} 31... Rb5
{[%clk 0:01:10.9]} 32. Bb6 {[%clk 0:01:21.1]} 32... Kf5 {[%clk 0:01:02]} 33. Rd8
{[%clk 0:01:18.2]} 33... Nd5 {[%clk 0:00:59.3]} 34. Bd4 {[%clk 0:01:10.8]} 34...
Rxa5 {[%clk 0:00:53.8]} 35. Bxg7 {[%clk 0:01:10]} 35... Nf4 {[%clk 0:00:52.2]}
36. Bxh6 {[%clk 0:01:05]} 36... Ra1+ {[%clk 0:00:47]} 37. Kh2 {[%clk 0:01:04.4]}
37... Ne6 {[%clk 0:00:46.5]} 38. Rd5+ {[%clk 0:00:58.8]} 38... Ke4 {[%clk
0:00:45.1]} 39. Rd6 {[%clk 0:00:57.8]} 39... Ke5 {[%clk 0:00:38.3]} 40. Rb6
{[%clk 0:00:54.9]} 40... Ra2 {[%clk 0:00:35.7]} 41. Be3 {[%clk 0:00:51.7]} 41...
a5 {[%clk 0:00:31]} 42. h4 {[%clk 0:00:49.5]} 42... a4 {[%clk 0:00:30]} 43. Rxb7
{[%clk 0:00:48.1]} 43... a3 {[%clk 0:00:26.3]} 44. h5 {[%clk 0:00:47.5]} 44...
Rb2 {[%clk 0:00:22.3]} 45. Ra7 {[%clk 0:00:44.7]} 45... a2 {[%clk 0:00:21.7]}
46. h6 {[%clk 0:00:44.2]} 46... Nf8 {[%clk 0:00:18.2]} 47. g4 {[%clk 0:00:36.3]}
47... Ke4 {[%clk 0:00:15.3]} 48. Kg3 {[%clk 0:00:35.4]} 48... Rc2 {[%clk
0:00:13.9]} 49. g5 {[%clk 0:00:33.5]} 49... Kf5 {[%clk 0:00:13.8]} 50. Ra5+
{[%clk 0:00:31.6]} 50... Kg6 {[%clk 0:00:12.6]} 51. Kg4 {[%clk 0:00:30.2]} 51...
Rc4+ {[%clk 0:00:10.8]} 52. f4 {[%clk 0:00:29.4]} 52... Rc3 {[%clk 0:00:08.1]}
53. f5+ {[%clk 0:00:28.8]} 53... Kh7 {[%clk 0:00:06.9]} 54. Ra7+ {[%clk
0:00:27.6]} 54... Kg8 {[%clk 0:00:05.1]} 55. Bf4 {[%clk 0:00:26.3]} 55... Rc4
{[%clk 0:00:02.5]} 56. Rxa2 {[%clk 0:00:24.8]} 1-0

[Event "Live Chess"]
[Site "Chess.com"]
[Date "2024.06.02"]
[Round "-"]
[White "Larchikov"]
[Black "NottheBishopSacrifice"]
[Result "1/2-1/2"]
[WhiteElo "2117"]
[BlackElo "2335"]
[TimeControl "300"]
[EndTime "7:58:56 PDT"]
[Termination "Game drawn by agreement"]

1. d4 {[%clk 0:04:54.6]} 1... d5 {[%clk 0:04:58]} 2. c4 {[%clk 0:04:52.2]} 2...
e6 {[%clk 0:04:57.6]} 3. Nf3 {[%clk 0:04:50.5]} 3... Nf6 {[%clk 0:04:57]} 4. Nc3
{[%clk 0:04:48.2]} 4... a6 {[%clk 0:04:56]} 5. cxd5 {[%clk 0:04:43.5]} 5... exd5
{[%clk 0:04:55.9]} 6. Bg5 {[%clk 0:04:42.4]} 6... Be6 {[%clk 0:04:54.3]} 7. e3
{[%clk 0:04:41.2]} 7... Nbd7 {[%clk 0:04:52.5]} 8. Ne5 {[%clk 0:04:36.7]} 8...
Bd6 {[%clk 0:04:47.2]} 9. f4 {[%clk 0:04:35.3]} 9... h6 {[%clk 0:04:45.8]} 10.
Bh4 {[%clk 0:04:33.4]} 10... Be7 {[%clk 0:04:20]} 11. Bd3 {[%clk 0:04:30.1]}
11... Nxe5 {[%clk 0:04:16.1]} 12. fxe5 {[%clk 0:04:10]} 12... Nd7 {[%clk
0:04:11]} 13. Bxe7 {[%clk 0:04:08.2]} 13... Qxe7 {[%clk 0:04:10.9]} 14. O-O
{[%clk 0:04:06.5]} 14... O-O {[%clk 0:04:08.8]} 15. Qh5 {[%clk 0:04:01.3]} 15...
c6 {[%clk 0:04:03.9]} 16. Ne2 {[%clk 0:03:59.2]} 16... Qg5 {[%clk 0:04:02.1]}
17. Qxg5 {[%clk 0:03:53.3]} 17... hxg5 {[%clk 0:04:02]} 18. Bf5 {[%clk
0:03:51.7]} 18... g6 {[%clk 0:03:54.1]} 19. Bxe6 {[%clk 0:03:49.8]} 19... fxe6
{[%clk 0:03:54]} 20. Rf3 {[%clk 0:03:28.5]} 20... Rf5 {[%clk 0:03:42.6]} 21.
Raf1 {[%clk 0:03:24.6]} 21... Raf8 {[%clk 0:03:40.5]} 22. Ng3 {[%clk 0:03:22]}
22... Rxf3 {[%clk 0:03:38.4]} 23. gxf3 {[%clk 0:03:19.9]} 23... Kg7 {[%clk
0:03:35.1]} 24. Kg2 {[%clk 0:03:12.4]} 24... Nb6 {[%clk 0:03:32.7]} 25. b3
{[%clk 0:03:09]} 25... a5 {[%clk 0:03:30.9]} 26. Rb1 {[%clk 0:02:56]} 26... Nd7
{[%clk 0:03:26.7]} 27. Ne2 {[%clk 0:02:53.1]} 27... Ra8 {[%clk 0:03:23.6]} 28.
a4 {[%clk 0:02:49.1]} 28... Nb8 {[%clk 0:03:21.2]} 29. Nc1 {[%clk 0:02:44.6]}
29... Na6 {[%clk 0:03:20.2]} 30. Nd3 {[%clk 0:02:42.9]} 30... Kh6 {[%clk
0:03:10.3]} 31. Kg3 {[%clk 0:02:35.1]} 31... Rh8 {[%clk 0:03:01.8]} 32. b4
{[%clk 0:02:22.7]} 32... axb4 {[%clk 0:02:52.8]} 33. Nxb4 {[%clk 0:02:22.6]}
33... Nxb4 {[%clk 0:02:51.5]} 34. Rxb4 {[%clk 0:02:21.1]} 34... Rh7 {[%clk
0:02:50.4]} 35. Kg4 {[%clk 0:02:13.8]} 35... Rc7 {[%clk 0:02:48]} 36. Rb6 {[%clk
0:02:11.5]} 36... Rd7 {[%clk 0:02:41]} 37. a5 {[%clk 0:02:10.2]} 37... Rc7
{[%clk 0:02:40.4]} 38. h3 {[%clk 0:02:07.4]} 38... c5 {[%clk 0:02:20]} 39. Rxe6
{[%clk 0:01:40]} 39... cxd4 {[%clk 0:02:17.1]} 40. exd4 {[%clk 0:01:39.9]} 40...
Rc4 {[%clk 0:02:15.9]} 41. Rd6 {[%clk 0:01:37.1]} 41... Rxd4+ {[%clk 0:02:14.6]}
42. Kg3 {[%clk 0:01:35.8]} 42... Rd2 {[%clk 0:02:11.1]} 43. e6 {[%clk
0:01:33.2]} 43... Re2 {[%clk 0:02:08.1]} 44. Rxd5 {[%clk 0:01:27.9]} 44... Rxe6
{[%clk 0:02:06.5]} 45. Rb5 {[%clk 0:01:27.5]} 45... Re7 {[%clk 0:02:03.5]} 46.
Kg4 {[%clk 0:01:26.5]} 46... Rc7 {[%clk 0:02:01]} 47. Rxg5 {[%clk 0:01:21.4]}
47... Rc4+ {[%clk 0:01:59.6]} 48. f4 {[%clk 0:01:20.2]} 48... Rb4 {[%clk
0:01:58.6]} 49. Rc5 {[%clk 0:01:18]} 49... b6 {[%clk 0:01:55.7]} 50. axb6 {[%clk
0:01:12.5]} 50... Rxb6 {[%clk 0:01:55.6]} 51. h4 {[%clk 0:01:10.5]} 51... Rb1
{[%clk 0:01:53.3]} 52. f5 {[%clk 0:00:57.8]} 52... gxf5+ {[%clk 0:01:51.3]} 53.
Rxf5 {[%clk 0:00:54.2]} 53... Rg1+ {[%clk 0:01:48.8]} 54. Kh3 {[%clk 0:00:53.2]}
54... Rh1+ {[%clk 0:01:47.8]} 55. Kg4 {[%clk 0:00:51.7]} 1/2-1/2